Cogmind - Beta 10.2 @@@ ROGUE MODE // 2021.04.10 @ 20:06:00 Player: cavemonk Result: Destroyed by D-53 Grenadier with Mini Grenade Launcher Performance ------------- Evolutions (0) 0 Regions Visited (2) 400 Robots Destroyed (16) 80 Value Destroyed (300) 300 Prototype IDs (5) 100 Alien Tech Used (0) 0 Bonus (0) 0 TOTAL SCORE: 880 Bonus ------- None Cogmind --------- Core Integrity 0/250 Matter 300/300 Energy 100/100 System Corruption 1% Temperature Cool (0) Movement Core (300) Ox5 Location -10/Mines Parts ------- > --- POWER (1) -------- (None) > --- PROPULSION (2) --- (None) > --- UTILITY (2) ------ Large Storage Unit > --- WEAPON (2) ------- (None) > --- INVENTORY (10) --- Light Treads Light Treads Large Storage Unit Large Storage Unit Light Assault Rifle Light Assault Rifle Light Assault Rifle Light Assault Rifle Mining Laser Peak State ------------ > --- POWER ------------ Light Nuclear Core > --- PROPULSION ------- Light Treads Light Treads > --- UTILITY ---------- Large Storage Unit Light Armor Plating > --- WEAPON ----------- Beam Cannon Assault Rifle > --- INVENTORY -------- Light Ion Engine Light Treads Wheel Large Storage Unit Large Storage Unit Light Assault Rifle Light Assault Rifle Light Assault Rifle Light Assault Rifle Mining Laser [Rating: 10] Favorites ----------- Power Ion Engine Engine Ion Engine Power Core Light Nuclear Core Propulsion Light Treads Treads Light Treads Leg Aluminum Leg Wheel Wheel Utility Large Storage Unit Storage Large Storage Unit Protection Light Armor Plating Weapon Assault Rifle Energy Gun Backup Laser I Energy Cannon Beam Cannon Ballistic Gun Assault Rifle Special Weapon Mining Laser Build | -11 -10 -10 ------- Run | Scr Mat Min Slots Evolved . | . . . Power . | . . . Propulsion . | . . . Utility . | . . . Weapon . | . . . Parts Attached 41 | 3 37 1 Power 3 | . 3 . Engine 2 | . 2 . Core 1 | . 1 . Reactor . | . . . Propulsion 20 | 2 17 1 Treads 11 | 1 10 . Leg . | . . . Wheel 9 | 1 7 1 Hover . | . . . Flight . | . . . Utility 4 | 1 3 . Device . | . . . Storage 3 | 1 2 . Processor . | . . . Hackware . | . . . Protection 1 | . 1 . Artifact . | . . . Weapon 14 | . 14 . Energy Gun 3 | . 3 . Energy Cannon 4 | . 4 . Ballistic Gun 5 | . 5 . Ballistic Cannon . | . . . Launcher . | . . . Special Weapon 2 | . 2 . Impact Weapon . | . . . Slashing Weapon . | . . . Piercing Weapon . | . . . Special Melee Weapon . | . . . Unidentified Prototypes . | . . . Parts Lost 10 | . 3 7 Power 2 | . 1 1 Propulsion 3 | . . 3 Utility 1 | . . 1 Weapon 4 | . 2 2 Highest Loss Streak 7 | . 1 7 Average Slot Usage (%) 98 | . 98 96 Engine 9 | . 10 . Core 4 | . 2 13 Treads 14 | . 14 13 Wheel 12 | . 12 13 Storage 20 | . 21 14 Protection 7 | . 6 13 Energy Gun 1 | . 1 . Energy Cannon 7 | . 6 13 Ballistic Gun 16 | . 17 13 Special Weapon 1 | . 1 . Naked Turns . | . . . Heaviest Build 42 | 16 42 29 Greatest Support 40 | 20 40 10 Greatest Overweight (x) 5 | 1 4 5 Average Overweight (x) 2 | . 2 2 Largest Inventory Capacity 16 | 8 16 10 Average Capacity 12 | 6 12 10 Most Carried 16 | 6 16 10 Average Carried 11 | 5 12 9 Final Capacity 10 | 8 10 10 Final Carried 10 | 6 10 9 Class Distribution -------------------- 100% | Mutant Dominant Class ---------------- Mutant | -10/Materials Mutant | -10/Mines Resources | -11 -10 -10 ----------- Run | Scr Mat Min Matter Collected 783 | 258 525 . Remotely . | . . . Salvage Created 673 | 88 585 . Parts 43 | 9 34 . Haulers Intercepted 2 | . 2 . Recyclers Shooed 2 | 1 1 . Parts Field Recycled . | . . . Retrieved Matter . | . . . Parts Self-Destructed . | . . . Prevented . | . . . Kills | -11 -10 -10 ------- Run | Scr Mat Min Combat Hostiles Destroyed 8 | . 8 . Guns 7 | . 7 . Cannons 1 | . 1 . Classes Destroyed 7 | 2 5 . Builder 1 | . 1 . Tunneler 1 | 1 . . Hauler 2 | . 2 . Recycler 3 | 1 2 . Watcher 1 | . 1 . Swarmer 2 | . 2 . Grunt 6 | . 6 . Best Kill Streak 3 | 2 3 . Combat Bots Only 2 | . 2 . Max Kills in Single Turn 1 | 1 1 . Gunslinging . | . . . Exploded . | . . . Melee . | . . . Uniques/NPCs Destroyed . | . . . Combat | -11 -10 -10 -------- Run | Scr Mat Min Damage Taken 1226 | . 504 722 Core 255 | . 55 200 Absorbed by Shields . | . . . Core Remaining (%) 100 | 100 . . Volleys Fired 61 | 7 54 . Largest 2 | 2 2 . Hottest 100 | 40 100 . Shots Fired 118 | 14 104 . Gun 98 | 14 84 . Cannon 17 | . 17 . Launcher . | . . . Special 3 | . 3 . Kinetic 82 | 14 68 . Thermal 20 | . 20 . Explosive . | . . . Electromagnetic 16 | . 16 . Robot Hit Streak 8 | 4 8 . Robot Miss Streak 3 | 2 3 . Penetration Max . | . . . Secondary Targets 1 | . 1 . Max Gunslinging Chain 1 | . 1 . Shots Hit Robots 76 | 9 67 . Core Hits 27 | 3 24 . Critical Hits 1 | . 1 . Critical Kills . | . . . Critical Parts Destroyed 1 | . 1 . Melee Attacks . | . . . Impact . | . . . Slashing . | . . . Piercing . | . . . Sneak Attacks . | . . . Combat Hostiles . | . . . Follow-up Attacks . | . . . Damage Inflicted 1003 | 89 914 . Guns 724 | 89 635 . Cannons 212 | . 212 . Explosions 67 | . 67 . Melee . | . . . Ramming . | . . . Kinetic 581 | 89 492 . Thermal 279 | . 279 . Explosive . | . . . Electromagnetic 143 | . 143 . Impact . | . . . Slashing . | . . . Piercing . | . . . Highest Corruption 1 | . 1 1 Average Corruption 1 | . 1 1 Corruption Purged . | . . . Effects 4 | . 3 1 Message Errors 2 | . 1 1 Targeting Errors 1 | . 1 . Weapon Failures 1 | . 1 . Overload Shots . | . . . Overflow Damage . | . . . Projectiles . | . . . Explosions . | . . . Melee . | . . . Knockbacks . | . . . Impact . | . . . Kinetic . | . . . Secondary . | . . . Self-Inflicted Damage 6 | . 6 . Shots 1 | . 1 . Rammed . | . . . Targets Rammed . | . . . Kicked . | . . . Crushed . | . . . Highest Temperature 165 | . 165 . Average Temperature 61 | . 61 . Received Heat Transfer 225 | . 225 . Siege Activations . | . . . Robots Corrupted . | . . . Combat Hostiles . | . . . Parts Fried 1 | . 1 . Impact Corruptions . | . . . Robots Melted . | . . . Combat Hostiles . | . . . Parts Melted . | . . . Heat Transferred 544 | . 544 . Parts Sabotaged . | . . . Parts Stolen . | . . . Parts Stripped . | . . . Power Chain Reactions 1 | . 1 . Missiles Intercepted . | . . . Alert | -11 -10 -10 ------- Run | Scr Mat Min Peak Influence 155 | 10 155 25 Initial 25 | . 6 25 Average 56 | 8 65 23 Maximum Alert Level . | . . . Low Security (%) 100 | 100 100 100 Level 1 . | . . . Level 2 . | . . . Level 3 . | . . . Level 4 . | . . . Level 5 . | . . . High Security . | . . . Max Security . | . . . Squads Dispatched 2 | . 2 . Investigation 2 | . 2 . Extermination . | . . . Reinforcement . | . . . Assault . | . . . Garrison . | . . . Intercept . | . . . Construction Impeded . | . . . Haulers Reinforced . | . . . Stealth | -11 -10 -10 --------- Run | Scr Mat Min Distress Signals 1 | . 1 . Communications Jammed . | . . . Distress Signals . | . . . Times Spotted 22 | . 20 2 Peak Tracking Total 5 | . 5 2 Tactical Retreats . | . . . Traps | -11 -10 -10 ------- Run | Scr Mat Min Traps Triggered 6 | . 6 . Indirectly . | . . . Trap Hack Attempts . | . . . Triggered . | . . . Disarmed . | . . . Reprogrammed . | . . . Reused . | . . . Traps Extracted . | . . . Installed . | . . . Triggered . | . . . Machines | -11 -10 -10 ---------- Run | Scr Mat Min Machines Disabled . | . . . Max in Single Turn . | . . . Machines Sabotaged . | . . . Garrisons Compromised . | . . . Overloaded Fab Kills . | . . . Fab Network Shutdowns . | . . . Hacking | -11 -10 -10 --------- Run | Scr Mat Min Machines Accessed 9 | . 9 . Terminals 7 | . 7 . Fabricators . | . . . Repair Stations 1 | . 1 . Recycling Units 1 | . 1 . Scanalyzers . | . . . Garrison Access . | . . . Total Hacks 34 | . 34 . Successful 24 | . 24 . Failed 9 | . 9 . Catastrophic 1 | . 1 . Database Lockouts 1 | . 1 . Manual 20 | . 20 . Terminals 27 | . 27 . Fabricators . | . . . Repair Stations 6 | . 6 . Recycling Units 1 | . 1 . Scanalyzers . | . . . Garrison Access . | . . . Terminal Hacks 13 | . 13 . Record 2 | . 2 . Robot Analysis 1 | . 1 . Prototype ID Bank 3 | . 3 . Terminal Index 1 | . 1 . Alert Level 1 | . 1 . Locate Traps 1 | . 1 . Hauler Manifests 1 | . 1 . Registered Components 1 | . 1 . Zone Layout 2 | . 2 . Fabricator Hacks . | . . . Repair Station Hacks 5 | . 5 . Scan Component 2 | . 2 . Repair 2 | . 2 . Refit 1 | . 1 . Recycling Unit Hacks 1 | . 1 . Report Inventory 1 | . 1 . Scanalyzer . | . . . Garrison Access Hacks . | . . . Unauthorized Hacks 4 | . 4 . Terminals 4 | . 4 . Track 3 | . 3 . Operators 1 | . 1 . Fabricators . | . . . Repair Stations . | . . . Recycling Units . | . . . Scanalyzers . | . . . Garrison Access . | . . . Data Cores Recovered . | . . . Used . | . . . Hacking Detections 8 | . 8 . Full Trace Events . | . . . Feedback Events . | . . . Feedback Blocked . | . . . Robot Schematics Acquired . | . . . Robots Built . | . . . Matter . | . . . Time . | . . . Total Robot Build Rating . | . . . Part Schematics Acquired . | . . . Parts Built . | . . . Matter . | . . . Time . | . . . Total Part Build Rating . | . . . Parts Repaired 2 | . 2 . Time 52 | . 52 . Parts Recycled . | . . . Recycled Matter . | . . . Retrieved Matter . | . . . Retrieved Components . | . . . Parts Scanalyzed . | . . . Part Schematics Acquired . | . . . Parts Damaged . | . . . Bothacking | -11 -10 -10 ------------ Run | Scr Mat Min Used RIF Installer . | . . . Robots Hacked . | . . . Non-combat . | . . . Combat . | . . . Robot Hacks Applied . | . . . Relay Couplers Released . | . . . Robots Rewired . | . . . Allies Hacked . | . . . Hacks Repelled . | . . . Allies | -11 -10 -10 -------- Run | Scr Mat Min Total Allies . | . . . Largest Group . | . . . Highest-Rated Group . | . . . Highest-Rated Ally . | . . . Total Orders . | . . . Ally Attacks . | . . . Total Damage . | . . . Kills . | . . . Allies Corrupted . | . . . Allies Melted . | . . . Intel | -11 -10 -10 ------- Run | Scr Mat Min Robot Analysis Total 1 | . 1 . Derelict Logs Recovered . | . . . Drone Launches . | . . . Drone Recoveries . | . . . Exploration | -11 -10 -10 ------------- Run | Scr Mat Min Turns Passed 1692 | 59 1357 276 Spaces Moved 1238 | 32 933 273 Core 1 | . . 1 Treads 57 | . 57 . Legs 14 | 14 . . Wheels 1166 | 18 876 272 Hover . | . . . Flight . | . . . Fastest Speed 90 | 90 90 90 Average Speed 107 | 103 110 100 Slowest Speed 300 | 120 180 300 Overloaded Moves . | . . . Propulsion Burnouts . | . . . Robots Hopped . | . . . Cave-ins Triggered . | . . . Exploration Rate (%) 52 | 3 96 58 Regions Visited 2 Branch Regions 1 Pre-discovered Areas . | . . . Known Exits Taken . | . . . Unknown Exits Taken 2 | 1 1 . Scrap Searched 1 | . . 1 Spaces Dug 3 | . 3 . Terrain Destroyed 6 | . 6 . Melee . | . . . Projectile 3 | . 3 . AOE 3 | . 3 . Terrain Rammed . | . . . Walls Destroyed . | . . . Machines Disabled . | . . . Actions | -11 -10 -10 --------- Run | Scr Mat Min Total 1467 | 45 1148 274 Wait 92 | . 92 . Move 1236 | 31 932 273 Hop . | . . . Pick Up 18 | 2 16 . Fast Attach 14 | 1 13 . Attach 9 | 2 6 1 Detach 1 | . 1 . Swap 18 | . 18 . Drop 18 | 2 16 . Fire 61 | 7 54 . Melee . | . . . Ram . | . . . Kick . | . . . Crush . | . . . Escape Stasis . | . . . Rewire . | . . . Trap . | . . . Miscellaneous . | . . . Route ------- -11/Scrapyard -10/Materials (discovered 4 exits: [*Mat x3] / [*Min]) -10/Mines (discovered 2 exits: [*Mat x2]) History --------- Turn | Location | Event 21 | -11/Scrapyard | Discovered new exit (range 3) 60 | -11/Scrapyard | Entered Materials 312 | -10/Materials | Build established: Mutant 437 | -10/Materials | Discovered new exit (range 8) 488 | -10/Materials | Discovered new exit (range 13) 562 | -10/Materials | Discovered new exit (range 10) 881 | -10/Materials | Repaired Lgt. Treads 908 | -10/Materials | Repaired Beam Cannon 949 | -10/Materials | Discovered new exit (range 8) 1198 | -10/Materials | Central database locked down 1417 | -10/Materials | Entered Mines 1502 | -10/Mines | Discovered new exit (range 14) 1521 | -10/Mines | Found a hidden stash of uninstalled traps 1591 | -10/Mines | Discovered new exit (range 8) 1654 | -10/Mines | Assembled infested the area 1659 | -10/Mines | Assisted by a Guerilla fighting off Assembled 1678 | -10/Mines | Core integrity fell below 50% 1692 | -10/Mines | Core integrity fell below 20% 1693 | -10/Mines | Destroyed by D-53 Grenadier with Mini Grenade Launcher Last Messages --------------- 01558_ K-01 Serf collects debris. 01591_ EXIT=FOUND 01654_ ALERT: Infestation in the mines, dispatching Demolisher response squad. 01664_ K-01 Serf collects debris. 01671_ C-30 ARC bursts open, deploying its payload. 01671_ D-53 Grenadier unfolds itself. 01671_ T-07 Excavator destroyed. 01671_ Pressure Siphon disabled. 01679_ Wheel destroyed. 01682_ The unstable cave ceiling collapses. 01682_ Lgt. Armor Plating destroyed. 01684_ Lgt. Treads destroyed. 01687_ Beam Cannon destroyed. 01687_ Lgt. Nuclear Core destroyed. 01689_ The unstable cave ceiling collapses. 01689_ Assault Rifle destroyed. 01689_ Wheel destroyed. 01691_ The unstable cave ceiling collapses. 01693_ U-05 Engineer lays Concrete. Map ----- +----------------------------------------------------+ | ?????????????# #### #### ##?# | | ?????????????# ## #### ^ # | | ?????????????# """ ##### # ##^ # | | ?????????????## """ #??#### # # | | ??????????????## ## """ #???# ^# # | | ???????????????# ###### #????# # # | | ?????????# ##### #????##### !###### # | | ?????????# #????????## % ####### | | ?????????####### #?????????### ! #?????? | | ??? ??????????# #???????????############?????? | | ? ###### ###??????????????????????????? | | ? ###????????????????????????? | | ? # #####????????????????????? | | ????### ######## # ##???????????????????? | | ??????# ?????## #???????????????????? | | ??????# ?##### # #???????????????????? | | ??????# ## ##??????????????????? | | ??????# ##?????????????????? | | ??????# #?????????????????? | | ??????## """ # #??######?????????? | | ???????# "" # #?## #?????????? | | ???????## " ### #?????????? | | ???????## # #??????????? | | ???????# d #???????????? | | ???????# ## ##???????????? | | ??????# d @ #????????????? | | ##??#### *% u # # #????????????? | | ### #%"# #????????????? | | "" ## ### ### ##" ## ############??? | | "" ## #?## #?#### #### #??? | | "" #??# #????# ### #??? | | ### #??# #????#####r ### < ### #??? | | #??# #??# #????????## t### ##?# #??? | | #???# #??# #####????## ##??# #??? | | ????# #??# ## ###### #???# #??? | | ?????# #### # !! ### #???# #??? | | ???### ! #?## ##??## #??? | | ??## ##### # #??###??## #??? | | ??# ###### #???## ## ##???????# ##?? | | ?## & ##???## ##????#t #####????????# < #?? | | ?# & & #????# !#????## ########?????## #?? | | ?# &# #????# #????# #??????## #?? | | ?# ## #???#! #????# #???????# #?? | | ?###?# #??# / #????# #???????## #?? | | ?????# #??# ##????+ #????????####?? | | ?????# #??####??????+ #?????????????? | | ?????# #????????????# #?????????????? | | ????## #????????????# #?????????????? | | ????# #????????????# #?????????????? | | ????# #????????????# #?????????????? | +----------------------------------------------------+ Best States ------------- Heat Dissipation 25 Energy Generation 14 Energy Capacity 250 Matter Stores 300 Matter Capacity 300 Sight Range 16 Terrain Scan Density 10 Armor Coverage 150 Evasion (%) 42 Recoil Reduction 2 Item Schematics ----------------- None Robot Schematics ------------------ None Fabricated ------------ Nothing Alien Tech Used ----------------- None Achievements -------------- None Challenges ------------ None Game ------ Seed IonicForceMembrane Manual? 0 Play Time 00:20:37 Cumulative 203.8 hours Start 2021.04.10 @ 14:55:20 End 2021.04.10 @ 20:06:00 Sessions 2 Manual Loads 0 Difficulty Rogue Special Mode None Game No. 128 Rogue 128 Adventurer 0 Explorer 0 Win Type - Total 3 Types 3/0/0/0/0/0/0/0/0 Lore% 46 Gallery% 68 Achievement% 53 Wizard Run 0 Options --------- ASCII 0 Keyboard 0 Movement Numpad Keybinds 0 Fullscreen 2 Font 18/TerminusBold Map View 76x50 Tactical HUD 1 Map Filters NONE Filters NONE Steam 1 RUN: 0a75ff3a-5689-4677-8a7c-86f1fd74259d